{"text_format":"1","workbook":"xlsx","n_sheets":17,"sheets":["Pagina iniziale","Scheda A","I-Legale rappresentante","II-Anagrafica azle","Attività produttiva","Oliveti","Campagna olio","Trasformati-Venduti","Categoria di spesa","Eleggibilità spesa","Macchinari","Opere edili","Cronoprogramma","Copertura fin","Indicatori milestone","Quadro riepilogativo","Elenchi"],"not_rendered":{"charts":0,"images":2,"macros":1,"external_links":0,"defined_names":15,"comments":0,"pivot_tables":0},"unopened":[],"bounds":{"document_bytes":16777216,"sheet_cells":100000,"rows_first":2000,"rows_last":500,"rows_between":2000,"halvings":0,"cell_chars":16384,"cell_head_chars":4096},"cells_cut":0,"cells_raw":0,"read":"whole","date_system":"1900"}

{"sheet":"Pagina iniziale","index":0,"n_rows":7,"n_cols":1,"rows_kept":7,"cut":false,"hidden":false,"merged":[]}
["REGIONE ABRUZZO\nDipartimento Agricoltura\n"]
[{"$f":"'I-Legale rappresentante'!A1","v":"Decreto del Mipaaf n. 0053263 del 02/02/2023 - PNRR - M2C1 - INVESTIMENTO 2.3\nInnovazione e meccanizzazione nel settore agricolo e alimentare: Ammodernamento dei frantoi oleari\n\nREGIONE ABRUZZO: Delibera DPD 018/588 Bando di Aiuto \"Innovazione e meccanizzazione nel settore agricolo e alimentare\", data di fine procedura 15/01/2024"}]
[]
["Su Windows 11 è necessario abilitare le macro seguendo la procedura seguente:"]
["1- Click destro sul file"]
["2- Seleziono \"Proprietà\""]
["3- Nella voce \"Sicurezza\" in basso, selezionare la casella \"Sblocca\""]

{"sheet":"Scheda A","index":1,"n_rows":16,"n_cols":7,"rows_kept":16,"cut":false,"hidden":false,"merged":[[0,0,0,2],[14,0,14,3],[15,0,15,3]]}
["Riepilogo dei macchinari ammessi al finanziamento ",null,null,null,null,"Legenda ","Tipologia di intervento "]
[" ","Tipologie di macchinari ammessi al finanziamento ","Spiegazione della richiesta in base al principio DNSH ","Tipologia intervento ",null,"a ","Sostituzione di macchinari "]
[1,"Sostituzione di frangitori a martelli, con frangitori a dischi e a coltelli, denocciolatori e frangitori che operano una frangitura \"differenziata\" sulle parti costitutive del frutto. Inoltre, viene inclusa la sostituzione di gramolatrici tradizionali e silos ","Miglioramento della qualità dell'olio vergine ed extravergine di oliva dovuto all'aumento della concentrazione in composti fenolici ad azione antiossidante; Nota 1*. ","A ",null,"b ","Acquisto di nuovi macchinari per il miglioramento della produzione attraverso la riduzione di consumi e di sprechi "]
[2,"Sostituzione/aggiornamento tecnologico di silos tradizionali con sistemi di stoccaggio degli oli in atmosfera controllata mediante gas inerti. ","Riduzione dei processi di invecchiamento precoce del prodotto evitando l'ossidazione dovuta alla presenza di ossigeno in fase di stoccaggio. Nota 1*. ","A ",null,"c ","Interventi edili esclusivamente funzionali all'installazione dei nuovi macchinari "]
[3,"Sostituzione di decanter senza separatore verticale con decanter accoppiato al separatore verticale (incluso il separatore verticale). ","Produzione di olio più pulito in termini di acqua di vegetazione, residui solidi e mucillaginosi. Riduzione dei tempi di filtrazione e della quantità di materiale filtrante da smaltire. Nota 1**. ","A "]
[4,"Sostituzione di sistemi di filtrazione con sistemi di filtrazione più efficienti, ovvero con sistemi che a parità di condizioni di prodotto iniziale e finale, necessitano di minore quantità di materiale filtrante. ","Riduzione della quantità di materiale filtrante da smaltire. Nota 1*. ","A "]
[5,"Sostituzione di gramolatrici tradizionali con gramolatrici continue/confinate o gramolatrici operanti in alto vuoto. ","Riduzione della quantità di ossigeno presente con corrispondente aumento del contenuto fenolico degli oli vergini ed extravergini di oliva senza modificare i composti volatili. Gramolazione della pasta di olive sotto vuoto spinto. ","A "]
[6,"Sostituzione di centrali termiche di frantoi alimentate con combustibili da fonti energetiche non rinnovabili con centrali termiche alimentate a nocciolino di sansa, destinate esclusivamente all'impianto oggetto di ammodernamento tecnologico. ","In ottica di economia circolare, produzione di calore a partire da nocciolino come fonte di energia rinnovabile. ","A "]
[7,"Sostituzione di impianti di estrazione a tre fasi con nuovi impianti a due fasi o in alternativa con impianti a tre fasi a bassa diluizione. ","Riduzione della quantità di acqua di fonte utilizzata per la diluizione in fase di estrazione, che passa da 0,5 - 0,2 mc/ton a 0,2 - 0 mc/ton di olive lavorate. Riduzione della produzione di acque di vegetazione con potere inquinante. Produzione di oli con una concentrazione maggiore di composti fenolici ad azione antiossidante. Nota 1*. ","A "]
[8,"Acquisto di tecnologie ad ultrasuoni per il trattamento delle paste di olive e di tecnologie P.E.F (Pulsed Electric Field) per il trattamento delle paste di olive. ","Aumento dell'efficienza del processo, estrazione di maggiore quantità di olio a parità di materia prima in ingresso e minore quantità di sottoprodotti in uscita. Nota 2**, Nota 1*. ","B "]
[9,"Acquisto di scambiatori di calore ad alta efficienza energetica per lo scambio termico per il termocondizionamento rapido della pasta di olive in post-frangitura. ","Aumento dell'efficienza dello scambio termico positivo e negativo, riduzione del consumo di energia utilizzata per il condizionamento delle paste effettuato con altri metodi (es. gramolatrici). Aumento della qualità del prodotto in termini di stabilità ossidativa e concentrazione di composti fenolici. Incremento della concentrazione di composti volatili caratteristici delle singole varietà, che concorrono ad aumentare l'intensità del fruttato di tipo \"verde\". Nota 1*. ","B "]
[10,"Acquisto di sistemi per la valorizzazione dei prodotti secondari mediante produzione di integratori alimentari (per l’alimentazione umana o zootecnica) da acque di vegetazione con tecnologie innovative, come la concentrazione su membrana, spray drying e liofilizzazione. ","Produzione di concentrati fenolici liquidi per la produzione di estratti fenolici stabilizzati ad azione antiossidante ed antimicrobica per utilizzo come ingrediente nell'industria alimentare e zootecnica. Abbattimento del carico inquinante delle acque di vegetazione dovuto ai composti fenolici, depurazione delle acque di vegetazione con possibilità di riutilizzo all'interno del frantoio sia come acque di processo che come acque di lavaggio. Possibilità di reimmissione dei concentrati liquidi in fase di gramolatura per incrementare il contenuto fenolico dell'olio vergine ed extravergine di oliva. Nota 1*. ","B "]
[11,"Acquisto di denocciolatori per sansa di olive. ","Recupero del nocciolino come combustibile da fonte di energia rinnovabile, preparazione delle sanse per altri utilizzi con effetto positivo sull'ambiente: utilizzo in mangimistica e produzione di biogas. ","B "]
[12,"Acquisto di sistemi di informatizzazione dell’impianto di estrazione per il controllo dei consumi energetici/kg prodotto e per la tracciabilità degli oli. ","Maggior controllo di processo, facilità nell'acquisizione di dati relativi al bilancio di massa per il conteggio di materia prima in ingresso, prodotto ottenuto e sottoprodotti in uscita. Aumento dell'efficienza dell'impianto dovuto ad una migliore logica gestionale. Minor consumo di energia dovuto alla diminuzione dei tempi morti e all'ottimizzazione del processo. ","B "]
["**Nota 1: L'aumento della stabilità ossidativa e dello shelf-life del prodotto allunga la vita dell'olio extravergine di oliva sia sfuso che confezionato diminuendo il volume di olio da destinare alla raffinazione a causa del declassamento della categoria merceologica da extravergine o vergine a lampante. Diminuzione notevole del fabbisogno di energia necessaria per condurre i processi di raffinazione per la produzione di oli raffinati di oliva. "]
["***Nota 2: L'aumento di efficienza del processo estrattivo permette una maggiore produzione di olio a parità di materie prime in ingresso. Inoltre, aumentando l'estraibilità industriale si può evitare la doppia estrazione consistente nel ripasso delle sanse vergini con evidente riduzione dei consumi energetici. L'eliminazione della doppia estrazione (produzione di olio da ripasso) comporta un notevole risparmio in termini energetici sotto forma di energia elettrica e necessità di calore per il riscaldamento delle sanse umide in fase di \"seconda\" gramolatura e successiva separazione centrifuga. Inoltre si sostituisce l'olio di ripasso (di fatto olio di sansa) con un aumento di olio extravergine o vergine di oliva e quindi di categoria merceologica superiore. "]

{"sheet":"I-Legale rappresentante","index":2,"n_rows":29,"n_cols":3,"rows_kept":29,"cut":false,"hidden":false,"merged":[[23,0,23,1],[24,0,24,1],[18,0,18,2],[14,0,14,2],[0,0,0,2],[1,0,1,2],[13,0,13,2],[2,0,2,1],[9,0,9,1],[7,0,7,1],[6,0,6,1],[5,0,5,1],[4,0,4,1],[3,0,3,1],[12,0,12,2],[8,0,8,1],[11,0,11,1],[10,0,10,1]]}
["Decreto del Mipaaf n. 0053263 del 02/02/2023 - PNRR - M2C1 - INVESTIMENTO 2.3\nInnovazione e meccanizzazione nel settore agricolo e alimentare: Ammodernamento dei frantoi oleari\n\nREGIONE ABRUZZO: Delibera DPD 018/588 Bando di Aiuto \"Innovazione e meccanizzazione nel settore agricolo e alimentare\", data di fine procedura 15/01/2024"]
["I - DATI IDENTIFICATI E ANAGRAFICI DEL LEGALE RAPPRESENTANTE DI IMPRESA\nOggetto: Dichiarazione sostitutiva di certificazione (art. 46 e 47 D.P.R.28 dicembre 2000 n. 445)."]
["Il sottoscritto (Cognome Nome)"]
["Luogo di nascita (Nazione, Provincia di Nascita, Comune di nascita)"]
["Data di nascita (gg/mm/aaaa)"]
["Residente a (Nazione, Provincia, Comune, Via, n. civico)"]
["Codice fiscale / Partita IVA"]
["In qualità di (Titolare/Legale rappresentante)"]
["Forma giuridica"]
["Recapiti (PEC e numero di telefono)"]
["Referente di progetto, se diverso da Titolare/legale rappresentante"]
["Recapiti del Referente di progetto, se diverso da Titolare/legale rappresentante (PEC e Numero di telefono)"]
["Consapevole che chiunque rilascia dichiarazioni mendaci è punito ai sensi del codice penale e delle leggi speciali in materia, ai sensi e per gli effetti dell'art. 46 del D.P.R. n. 445/2000,"]
["DICHIARA CHE "]
["IL PROGETTO NON ARRECA DANNI ALL'AMBIENTE"]
[1,"RISPETTO ELEMENTI DI CONTROLLO EX-ANTE del PRINCIPIO DNSH-TAB 2"]
[2,"RISPETTO ELEMENTI DI CONTROLLO EX-ANTE del PRINCIPIO DNSH-TAB 1"]
["A","% DI SPESA DESTINATA AL TAGGING AMBIENTE E CLIMA"]
["IL PROGETTO -È/NON È- STATO OGGETTO DI ALTRI FINANZIAMENTI"]
[1,"Se sì, specificare con quale fondo/legge"]
[2,"Se sì, specificare l'importo finanziato"]
[3,"Se sì, specificare l'anno di finanziamento"]
[]
["Data"]
["Luogo"]
[]
[null,null,"IL LEGALE RAPPRESENTANTE"]
[null,null,"(Timbro e firma digitale)"]
[null,null,"_________________________________"]

{"sheet":"II-Anagrafica azle","index":3,"n_rows":29,"n_cols":1,"rows_kept":29,"cut":false,"hidden":false,"merged":[[1,0,1,1],[0,0,0,1]]}
[{"$f":"'I-Legale rappresentante'!A1","v":"Decreto del Mipaaf n. 0053263 del 02/02/2023 - PNRR - M2C1 - INVESTIMENTO 2.3\nInnovazione e meccanizzazione nel settore agricolo e alimentare: Ammodernamento dei frantoi oleari\n\nREGIONE ABRUZZO: Delibera DPD 018/588 Bando di Aiuto \"Innovazione e meccanizzazione nel settore agricolo e alimentare\", data di fine procedura 15/01/2024"}]
["II - SCHEDA ANAGRAFICA DEL SOGGETTO RICHIEDENTE"]
["Ragione sociale o Denominazione"]
["CUAA"]
["CCIAA/Num. REA"]
["Codice ATECO"]
["Anno di Iscrizione CCIAA"]
["REGIME IVA"]
["Data primo insediamento"]
["Indicazione dell’attività prevalente "]
["Iscrizione INPS (anno, posizione)"]
["Forma giuridica"]
["Dimensione di Impresa"]
["Occupati (ULA)-2023"]
["Fatturato -2023"]
["Totale di Bilancio-2023"]
["Numero soci lavoratori"]
["Recapito PEC"]
["Sede legale "]
["Sede Operativa"]
["REFERENTE DEL PROGETTO"]
["PEC DEL REFERENTE DEL PROGETTO"]
["MOBILE DEL REFERENTE DEL PROGETTO"]
["Giovane Agricoltore\n(per avere diritto all'aliquota contributiva dell'80% riportare la data di nascita e allegare copia della pagina del fascicolo aziendale da cui si evidenzia la qualifica di Giovane Agricoltore)"]
["Forma di Conduzione"]
["Organismi associativi ai quali l'azienda aderisce (specificare quale/i eanno di adesione)"]
["Adesione a Sistema di Certificazionedi processo/prodotto o energetiche(Se SI specificare quale e Indicare da quale anno)"]
["Adesione dell'azienda art 28 (Pagamenti agro-climatico-ambientali) e/o 29 ( Agricoltura biologica) REG. (UE) 1305/2013"]
["Indicarela/le Sottomisura/e del PSR tra 4.1.1 e/o 4.2.1 a cui l'azienda ha già presentato eventuale domanda di finanziamento"]

{"sheet":"Attività produttiva","index":4,"n_rows":23,"n_cols":3,"rows_kept":23,"cut":false,"hidden":false,"merged":[[0,0,0,2],[1,0,1,2]]}
[{"$f":"'I-Legale rappresentante'!A1","v":"Decreto del Mipaaf n. 0053263 del 02/02/2023 - PNRR - M2C1 - INVESTIMENTO 2.3\nInnovazione e meccanizzazione nel settore agricolo e alimentare: Ammodernamento dei frantoi oleari\n\nREGIONE ABRUZZO: Delibera DPD 018/588 Bando di Aiuto \"Innovazione e meccanizzazione nel settore agricolo e alimentare\", data di fine procedura 15/01/2024"}]
["III - INFORMAZIONI PRODUTTIVE DEL SOGGETTO RICHIEDENTE"]
[null,"Descrizione","Dettaglio informativo"]
["Denominazione stabilimento/laboratorio"]
["Area di localizzazione dell'intervento (Comune, foglio)"]
["Stabilimento in affitto"]
["Stabilimento in proprietà"]
["Lavorazione conto terzi"]
["Impianto a pressione (Specificare tipologia e anno di messa in opera)"]
["Impianto continuo (Specificare tipologia e anno di messa in opera)"]
["Impianto percolante Specificare tipologia e anno di messa in opera)"]
["Impianto integrale Specificare tipologia e anno di messa in opera)"]
["Capacità potenziale di lavorazione (Ton Olive Nelle 8 ore)"]
["Numero di accreditamento\n(Accredia: Norma uni cei en iso/Iec 17025)"]
["Legale rappresentante dello stabilimento/Laboratorio"]
["Responsabile dello stabilimento/Laboratorio"]
["Unità Lavorative impiegate - Forza lavoro Totale"]
["Unità Lavorative Familiari - Forza lavoro Familiare"]
["Forza lavoro femminile (F>m) su Forza lavoro Totale"]
["Forza lavoro giovanile (40>t) su Forza lavoro Totale"]
["Forza lavoro giovanile (40>t) su Forza lavoro Totale"]
["Portale dell’olio di oliva del Sistema Informativo Agricolo Nazionale (SIAN), secondo le disposizioni di cui ai decreti del Ministero n. 8077/2009 e n. 16059/2013"]
["Registro telematico di carico/scarico olio e che sono in possesso delle \nspecifiche autorizzazioni ambientali richieste per lo svolgimento delle attività aziendali"]

{"sheet":"Oliveti","index":5,"n_rows":4,"n_cols":6,"rows_kept":4,"cut":false,"hidden":false,"merged":[[0,0,0,5],[1,0,1,5]]}
[{"$f":"'I-Legale rappresentante'!A1","v":"Decreto del Mipaaf n. 0053263 del 02/02/2023 - PNRR - M2C1 - INVESTIMENTO 2.3\nInnovazione e meccanizzazione nel settore agricolo e alimentare: Ammodernamento dei frantoi oleari\n\nREGIONE ABRUZZO: Delibera DPD 018/588 Bando di Aiuto \"Innovazione e meccanizzazione nel settore agricolo e alimentare\", data di fine procedura 15/01/2024"}]
["Dotazione di Piantagioni (proprietà, affitto, c/terzismo)"]
["Dotazione Oliveto ","Anno di Impianto","Estensione\n(in ettari, acri)","Localizzazione","Sistema colturale (Intensivo, estensivo, biologico)","Resa media di coltivazione\n(MEDIA ULTIMI 5 ANNI)"]
["TOTALE",null,null,null,null,{"$f":"SUM(F5:F9999)","v":0}]

{"sheet":"Campagna olio","index":6,"n_rows":48,"n_cols":1,"rows_kept":48,"cut":false,"hidden":false,"merged":[[0,0,0,1],[1,0,1,1],[2,0,2,1]]}
[{"$f":"'I-Legale rappresentante'!A1","v":"Decreto del Mipaaf n. 0053263 del 02/02/2023 - PNRR - M2C1 - INVESTIMENTO 2.3\nInnovazione e meccanizzazione nel settore agricolo e alimentare: Ammodernamento dei frantoi oleari\n\nREGIONE ABRUZZO: Delibera DPD 018/588 Bando di Aiuto \"Innovazione e meccanizzazione nel settore agricolo e alimentare\", data di fine procedura 15/01/2024"}]
["RILEVAZIONE CAMPAGNA PERIODO 2020-2022\n(OBBLIGATORIO) "]
["CAMPAGNA 2019/2020"]
["QUANTITATIVO OLIVE prodotte da conferenti (t)"]
["QUANTITATIVO OLIVE c/terzi (t)"]
["QUANTITATIVO OLIVE prodotte in proprio (t)"]
["QUANTITATIVO OLIVE MOLITE (kg)"]
["QUANTITATIVO OLIO PRODOTTO - TOTALE (kg)"]
["QUANTITATIVO OLIO PRODOTTO - VERGINE (kg)"]
["QUANTITATIVO OLIO PRODOTTO - EXTRAVERGINE (kg)"]
["QUANTITATIVO OLIO PRODOTTO - ATTESA DI CLASSIFICAZIONE (kg)"]
["QUANTITATIVO OLIO PRODOTTO - LAMPANTE (kg)"]
["CAMPAGNA 2019/2020"]
["QUANTITATIVO OLIVE prodotte da conferenti (t)"]
["QUANTITATIVO OLIVE prodotte in proprio (t)"]
["QUANTITATIVO OLIVE MOLITE (kg)"]
["QUANTITATIVO OLIO PRODOTTO - TOTALE (kg)"]
["QUANTITATIVO OLIO PRODOTTO - VERGINE (kg)"]
["QUANTITATIVO OLIO PRODOTTO - EXTRAVERGINE (kg)"]
["QUANTITATIVO OLIO PRODOTTO - ATTESA DI CLASSIFICAZIONE (kg)"]
["QUANTITATIVO OLIO PRODOTTO - LAMPANTE (kg)"]
["CAMPAGNA 2020/2021"]
["QUANTITATIVO OLIVE prodotte da conferenti (t)"]
["QUANTITATIVO OLIVE prodotte in proprio (t)"]
["QUANTITATIVO OLIVE MOLITE (kg)"]
["QUANTITATIVO OLIO PRODOTTO - TOTALE (kg)"]
["QUANTITATIVO OLIO PRODOTTO - VERGINE (kg)"]
["QUANTITATIVO OLIO PRODOTTO - EXTRAVERGINE (kg)"]
["QUANTITATIVO OLIO PRODOTTO - ATTESA DI CLASSIFICAZIONE (kg)"]
["QUANTITATIVO OLIO PRODOTTO - LAMPANTE (kg)"]
["CAMPAGNA 2021/2022"]
["QUANTITATIVO OLIVE prodotte da conferenti (t)"]
["QUANTITATIVO OLIVE prodotte in proprio (t)"]
["QUANTITATIVO OLIVE MOLITE (kg)"]
["QUANTITATIVO OLIO PRODOTTO - TOTALE (kg)"]
["QUANTITATIVO OLIO PRODOTTO - VERGINE (kg)"]
["QUANTITATIVO OLIO PRODOTTO - EXTRAVERGINE (kg)"]
["QUANTITATIVO OLIO PRODOTTO - ATTESA DI CLASSIFICAZIONE (kg)"]
["QUANTITATIVO OLIO PRODOTTO - LAMPANTE (kg)"]
["CAMPAGNA 2022/2023"]
["QUANTITATIVO OLIVE prodotte da conferenti (t)"]
["QUANTITATIVO OLIVE prodotte in proprio (t)"]
["QUANTITATIVO OLIVE MOLITE (kg)"]
["QUANTITATIVO OLIO PRODOTTO - TOTALE (kg)"]
["QUANTITATIVO OLIO PRODOTTO - VERGINE (kg)"]
["QUANTITATIVO OLIO PRODOTTO - EXTRAVERGINE (kg)"]
["QUANTITATIVO OLIO PRODOTTO - ATTESA DI CLASSIFICAZIONE (kg)"]
["QUANTITATIVO OLIO PRODOTTO - LAMPANTE (kg)"]

{"sheet":"Trasformati-Venduti","index":7,"n_rows":41,"n_cols":8,"rows_kept":41,"cut":false,"hidden":false,"merged":[[40,1,40,3],[37,0,38,0],[37,1,38,1],[37,3,37,7],[38,3,38,4],[38,6,38,7],[39,3,39,4],[39,5,39,7],[29,3,29,4],[29,5,29,7],[30,1,30,3],[32,0,32,7],[33,0,33,1],[33,2,33,5],[20,1,20,3],[22,0,22,7],[23,0,23,1],[23,2,23,5],[27,0,28,0],[27,1,28,1],[27,3,27,7],[28,3,28,4],[28,6,28,7],[9,5,9,7],[7,0,8,0],[8,3,8,4],[19,3,19,4],[19,5,19,7],[9,3,9,4],[10,1,10,3],[12,0,12,7],[13,0,13,1],[13,2,13,5],[17,0,18,0],[17,1,18,1],[17,3,17,7],[18,3,18,4],[18,6,18,7],[3,0,3,1],[2,0,2,7],[0,0,0,7],[3,2,3,5],[7,1,8,1],[7,3,7,7],[8,6,8,7]]}
[{"$f":"'I-Legale rappresentante'!A1","v":"Decreto del Mipaaf n. 0053263 del 02/02/2023 - PNRR - M2C1 - INVESTIMENTO 2.3\nInnovazione e meccanizzazione nel settore agricolo e alimentare: Ammodernamento dei frantoi oleari\n\nREGIONE ABRUZZO: Delibera DPD 018/588 Bando di Aiuto \"Innovazione e meccanizzazione nel settore agricolo e alimentare\", data di fine procedura 15/01/2024"}]
[]
["A - OLIO EXTRA VERGINE DI OLIVA"]
["Descrizione prodotto trasformato",null,null,null,null,null,"Nomenclatura UE"]
[null,null,"Anno precedente la presentazione della domanda di sostegno","Anno di presentazione della domanda di sostegno ","Anno 2025","Anno saldo finale (2026)","Anno 2027","Anno 2028"]
["A.1","Quantità (kg)"]
["A.2","Valore (€)"]
["A.3","Destinazione del prodotto\n(Anno 2026)","Mercato domestico","Indicare Regione/i"]
[null,null,"Mercato unionale","Indicare Stato/i",null,"Altri paesi","Indicare Stato/i"]
["A.4","Prodotto certificato(si/no)",null,"Denominazione certificazione"]
["A.5","Il prodotto trasformato è ricompreso nell'allegato I del TFUE ",null,null,"SI"]
[]
["B - OLIO VERGINE DI OLIVA"]
["Descrizione prodotto trasformato",null,null,null,null,null,"Nomenclatura UE"]
[null,null,"Anno precedente la presentazione della domanda di sostegno","Anno di presentazione della domanda di sostegno ","Anno 2025","Anno saldo finale (2026)","Anno 2027","Anno 2028"]
["B.1","Quantità (kg)"]
["B.2","Valore (€)"]
["B.3","Destinazione del prodotto\n(Anno 2026)","Mercato domestico","Indicare Regione/i"]
[null,null,"Mercato unionale","Indicare Stato/i",null,"Altri paesi","Indicare Stato/i"]
["B.4","Prodotto certificato(si/no)",null,"Denominazione certificazione"]
["B.5","Il prodotto trasformato è ricompreso nell'allegato I del TFUE ",null,null,"SI"]
[]
["C - OLIO DI OLIVA"]
["Descrizione prodotto trasformato",null,null,null,null,null,"Nomenclatura UE"]
[null,null,"Anno precedente la presentazione della domanda di sostegno","Anno di presentazione della domanda di sostegno ","Anno 2025","Anno saldo finale (2026)","Anno 2027","Anno 2028"]
["C.1","Quantità (kg)"]
["C.2","Valore (€)"]
["C.3","Destinazione del prodotto\n(Anno 2026)","Mercato domestico","Indicare Regione/i"]
[null,null,"Mercato unionale","Indicare Stato/i",null,"Altri paesi","Indicare Stato/i"]
["C.4","Prodotto certificato(si/no)",null,"Denominazione certificazione"]
["C.5","Il prodotto trasformato è ricompreso nell'allegato I del TFUE ",null,null,"SI"]
[]
["D - ALTRI OLI"]
["Descrizione prodotto trasformato",null,null,null,null,null,"Nomenclatura UE"]
[null,null,"Anno precedente la presentazione della domanda di sostegno","Anno di presentazione della domanda di sostegno ","Anno 2025","Anno saldo finale (2026)","Anno 2027","Anno 2028"]
["D.1","Quantità (kg)"]
["D.2","Valore (€)"]
["D.3","Destinazione del prodotto\n(Anno 2026)","Mercato domestico","Indicare Regione/i"]
[null,null,"Mercato unionale","Indicare Stato/i",null,"Altri paesi","Indicare Stato/i"]
["D.4","Prodotto certificato(si/no)",null,"Denominazione certificazione"]
["D.5","Il prodotto trasformato è ricompreso nell'allegato I del TFUE ",null,null,"SI"]

{"sheet":"Categoria di spesa","index":8,"n_rows":23,"n_cols":4,"rows_kept":23,"cut":false,"hidden":false,"merged":[[22,0,22,1],[21,0,21,1],[17,0,17,3],[11,0,11,1],[16,0,16,1],[0,0,0,3],[1,0,1,3],[12,0,12,3],[3,0,3,3],[7,0,9,0],[4,0,6,0]]}
[{"$f":"'I-Legale rappresentante'!A1","v":"Decreto del Mipaaf n. 0053263 del 02/02/2023 - PNRR - M2C1 - INVESTIMENTO 2.3\nInnovazione e meccanizzazione nel settore agricolo e alimentare: Ammodernamento dei frantoi oleari\n\nREGIONE ABRUZZO: Delibera DPD 018/588 Bando di Aiuto \"Innovazione e meccanizzazione nel settore agricolo e alimentare\", data di fine procedura 15/01/2024"}]
["PIANO INVESTIMENTO: CATEGORIA DI SPESA"]
["Categoria di spesa ","Costo totale per subcategoria","Valore imponibile\n(€)","Funzionalità rispetto al Ciclo di Produttivo"]
["A) Immobilizzazioni materiali "]
["Ammodernamento/ampliamento di fabbricati nella misura strettamente necessaria all’introduzione di nuovi impianti e tecnologie"]
[]
[]
["Sostituzione/ammodernamento degli impianti di lavorazione, stoccaggio e confezionamento dell’olio extravergine di oliva e dei relativi sottoprodotti/reflui di lavorazione"]
[]
[]
["Spese Generali"]
["Totale immobilizzazioni materiali",null,{"$f":"SUM(C5:C11)","v":0}]
["B) Immobilizzazioni immateriali "]
["Ammodernamento/ampliamento di fabbricati nella misura strettamente necessaria all’introduzione di nuovi impianti e tecnologie"]
["Sostituzione/ammodernamento degli impianti di lavorazione, stoccaggio e confezionamento dell’olio extravergine di oliva e dei relativi sottoprodotti/reflui di lavorazione"]
["Spese Generali"]
["Totale Immobilizzazioni immateriali ",null,{"$f":"SUM(C14:C16)","v":0}]
["c) Spese di gestione"]
["Ammodernamento/ampliamento di fabbricati nella misura strettamente necessaria all’introduzione di nuovi impianti e tecnologie"]
["Sostituzione/ammodernamento degli impianti di lavorazione, stoccaggio e confezionamento dell’olio extravergine di oliva e dei relativi sottoprodotti/reflui di lavorazione"]
["Spese Generali"]
["Totale spese di gestione",null,{"$f":"SUM(C19:C21)","v":0}]
["Totale a) + b) + c)",null,{"$f":"C12+C17+C22","v":0}]

{"sheet":"Eleggibilità spesa","index":9,"n_rows":4,"n_cols":8,"rows_kept":4,"cut":false,"hidden":false,"merged":[[0,0,0,7],[1,0,1,7]]}
[{"$f":"'I-Legale rappresentante'!A1","v":"Decreto del Mipaaf n. 0053263 del 02/02/2023 - PNRR - M2C1 - INVESTIMENTO 2.3\nInnovazione e meccanizzazione nel settore agricolo e alimentare: Ammodernamento dei frantoi oleari\n\nREGIONE ABRUZZO: Delibera DPD 018/588 Bando di Aiuto \"Innovazione e meccanizzazione nel settore agricolo e alimentare\", data di fine procedura 15/01/2024"}]
["PIANO INVESTIMENTO: ELEGGIBILITÀ DELLA SPESA, ART. 11 DEL BANDO"]
["Tipologia di intervento","Tipologia di Bene","Costo di Acquisto complessivo","IVA","ART. 11 Bando - Documenti di Spesa","Altri allegati tecnici (Specificare)","Ammissibilità della Spesa ai fini del DNSH (valutazione ex-ante)","Relazione tecnica foglio V-A di cui alla tabella Scheda A - TAB 2, Allegato I al DM 53263/2023  \"Documentazione necessaria (dichiarazioni e certificazioni) prodotto dal richiedente del finanziamento\""]
["TOTALE",null,{"$f":"SUM(C5:C9999)","v":0},{"$f":"SUM(D5:D9999)","v":0}]

{"sheet":"Macchinari","index":10,"n_rows":3,"n_cols":9,"rows_kept":3,"cut":false,"hidden":false,"merged":[[0,0,0,8],[1,0,1,8]]}
[{"$f":"'I-Legale rappresentante'!A1","v":"Decreto del Mipaaf n. 0053263 del 02/02/2023 - PNRR - M2C1 - INVESTIMENTO 2.3\nInnovazione e meccanizzazione nel settore agricolo e alimentare: Ammodernamento dei frantoi oleari\n\nREGIONE ABRUZZO: Delibera DPD 018/588 Bando di Aiuto \"Innovazione e meccanizzazione nel settore agricolo e alimentare\", data di fine procedura 15/01/2024"}]
["Acqusito di nuovi macchinari per il miglioramento della produzione attraverso la riduzione di consumi e di sprechi"]
["Tipologia di macchinario ammesso a finanziamento\n(Riportare descrizione come da elenco scheda A-TAB. 1)","Acquisto\n/\nSostituzione","Miglioramento obiettivo ambientale","Documentazione allegata ai fini del rispetto del Principio DNSH\n(vedi Tab. 2, ALL. 1 -documenti utili)","Ammissibilità della Spesa (valutazione ex-ante)","Destinazione d’uso prevista","kW\n/\nCapacità lavorativa","Consumo kWh","Spesa richiesta\n(Complessiva)"]

{"sheet":"Opere edili","index":11,"n_rows":3,"n_cols":7,"rows_kept":3,"cut":false,"hidden":false,"merged":[[0,0,0,6],[1,0,1,6]]}
[{"$f":"'I-Legale rappresentante'!A1","v":"Decreto del Mipaaf n. 0053263 del 02/02/2023 - PNRR - M2C1 - INVESTIMENTO 2.3\nInnovazione e meccanizzazione nel settore agricolo e alimentare: Ammodernamento dei frantoi oleari\n\nREGIONE ABRUZZO: Delibera DPD 018/588 Bando di Aiuto \"Innovazione e meccanizzazione nel settore agricolo e alimentare\", data di fine procedura 15/01/2024"}]
["FABBRICATI - Interventi edili esclusivamente funzionali all'installazione dei nuovi macchinari."]
["Comune di ubicazione del fabbricato","Foglio","Particella","Destinazione Corrente","Impianto\n(insieme di macchinari e di attrezzature) per i quali sono effettuati i lavori edili","Lavoro edile: Descrizione","Spesa richiesta"]

{"sheet":"Cronoprogramma","index":12,"n_rows":12,"n_cols":19,"rows_kept":12,"cut":false,"hidden":false,"merged":[[3,16,4,16],[3,17,4,17],[9,0,10,0],[9,1,10,1],[0,0,0,11],[1,0,1,11],[3,0,4,0],[3,1,4,1],[6,0,7,0],[6,1,7,1]]}
[{"$f":"'I-Legale rappresentante'!A1","v":"Decreto del Mipaaf n. 0053263 del 02/02/2023 - PNRR - M2C1 - INVESTIMENTO 2.3\nInnovazione e meccanizzazione nel settore agricolo e alimentare: Ammodernamento dei frantoi oleari\n\nREGIONE ABRUZZO: Delibera DPD 018/588 Bando di Aiuto \"Innovazione e meccanizzazione nel settore agricolo e alimentare\", data di fine procedura 15/01/2024"}]
["Avanzamento Fisico-Finanziario dell'investimento: Linear Split"]
["TIPOLOGIA DI INTERVENTO","VALORE COMPLESSIVO","Avanzamento","1° trimestre\n30/06/2024","2° trimestre\n30/09/2024","3° trimestre\n30/12/2024","4° trimestre\n30/03/2025","5° trimestre\n30/06/2025","6° trimestre\n30/09/2025","7° trimestre\n30/12/2025","Fine lavori\n31/01/2026","Domanda di Pagamento\n31/01/2026"]
[null,null,"Fisico",null,null,null,null,null,null,null,null,null,null,null,null,null,null,null,"Fisico"]
[null,null,"Finanziario",null,null,null,null,null,null,null,null,null,null,null,null,null,null,null,"Finanziario"]
["Descrizione fase di attuazione",null,null,null,null,null,null,null,null,null,null,null,null,null,null,null,"Descrizione fase di attuazione"]
[null,null,"Fisico"]
[null,null,"Finanziario"]
["Descrizione fase di attuazione"]
[null,null,"Fisico"]
[null,null,"Finanziario"]
["Descrizione fase di attuazione"]

{"sheet":"Copertura fin","index":13,"n_rows":15,"n_cols":12,"rows_kept":15,"cut":false,"hidden":false,"merged":[[0,0,0,11],[1,0,1,11],[2,0,2,11]]}
[{"$f":"'I-Legale rappresentante'!A1","v":"Decreto del Mipaaf n. 0053263 del 02/02/2023 - PNRR - M2C1 - INVESTIMENTO 2.3\nInnovazione e meccanizzazione nel settore agricolo e alimentare: Ammodernamento dei frantoi oleari\n\nREGIONE ABRUZZO: Delibera DPD 018/588 Bando di Aiuto \"Innovazione e meccanizzazione nel settore agricolo e alimentare\", data di fine procedura 15/01/2024"}]
["Piano finanziario dell'investimento\n(art. 10, co 1, lett. f)"]
[{"$f":"IF(SUM(I6:I10000)>130000,\"Superato tetto massimo concedibile\",IF(SUM(I6:I10000)<30000,\"Soglia minima per progetto non raggiunta\",\"\"))","v":"Soglia minima per progetto non raggiunta"}]
["Tipologia di intervento","Quantità","Valore economico Totale","Agevolabile","% Agevolazione","Anno di Acquisto","Data di Inizio ","Data Fine","Importo finanziabile con PNRR - M2C1 - INVESTIMENTO 2.3","Altro finanziamento pubblico ","Finanziamento privato","Copertura finanziaria %"]
["TOTALE",null,{"$f":"SUM(C6:C14)","v":0},null,null,null,null,null,{"$f":"IF(SUM(I6:I10000)>130000,130000,IF(SUM(I6:I10000)<30000,0,SUM(I6:I10000)))","v":0},{"$f":"SUM(J6:J14)","v":0},0]
[null,null,null,null,{"$f":"IF(OR(D6 = \"NO\", D6 = \"\"), 0%,\nIF('II-Anagrafica azle'!$B$24 = \"SI\", 80%, 65%\n))","v":0},null,null,null,{"$f":"C6*E6","v":0},null,null,{"$f":"IF(C6<>0, (J6+K6)/C6, \"\")","v":""}]
[null,null,null,null,{"$f":"IF(OR(D7 = \"NO\", D7 = \"\"), 0%,\nIF('II-Anagrafica azle'!$B$24 = \"SI\", 80%, 65%\n))","v":0},null,null,null,0,null,null,{"$f":"IF(C7<>0, (J7+K7)/C7, \"\")","v":""}]
[null,null,null,null,{"$f":"IF(OR(D8 = \"NO\", D8 = \"\"), 0%,\nIF('II-Anagrafica azle'!$B$24 = \"SI\", 80%, 65%\n))","v":0},null,null,null,0,null,null,""]
[null,null,null,null,{"$f":"IF(OR(D9 = \"NO\", D9 = \"\"), 0%,\nIF('II-Anagrafica azle'!$B$24 = \"SI\", 80%, 65%\n))","v":0},null,null,null,0,null,null,""]
[null,null,null,null,{"$f":"IF(OR(D10 = \"NO\", D10 = \"\"), 0%,\nIF('II-Anagrafica azle'!$B$24 = \"SI\", 80%, 65%\n))","v":0},null,null,null,0,null,null,""]
[null,null,null,null,{"$f":"IF(OR(D11 = \"NO\", D11 = \"\"), 0%,\nIF('II-Anagrafica azle'!$B$24 = \"SI\", 80%, 65%\n))","v":0},null,null,null,0,null,null,""]
[null,null,null,null,{"$f":"IF(OR(D12 = \"NO\", D12 = \"\"), 0%,\nIF('II-Anagrafica azle'!$B$24 = \"SI\", 80%, 65%\n))","v":0},null,null,null,0,null,null,""]
[null,null,null,null,{"$f":"IF(OR(D13 = \"NO\", D13 = \"\"), 0%,\nIF('II-Anagrafica azle'!$B$24 = \"SI\", 80%, 65%\n))","v":0},null,null,null,0,null,null,""]
[null,null,null,null,{"$f":"IF(OR(D14 = \"NO\", D14 = \"\"), 0%,\nIF('II-Anagrafica azle'!$B$24 = \"SI\", 80%, 65%\n))","v":0},null,null,null,0,null,null,""]
[null,null,null,null,{"$f":"IF(OR(D15 = \"NO\", D15 = \"\"), 0%,\nIF('II-Anagrafica azle'!$B$24 = \"SI\", 80%, 65%\n))","v":0},null,null,null,{"$f":"C15*E15","v":0},null,null,{"$f":"IF(C15<>0, (J15+K15)/C15, \"\")","v":""}]

{"sheet":"Indicatori milestone","index":14,"n_rows":4,"n_cols":13,"rows_kept":4,"cut":false,"hidden":false,"merged":[[0,0,0,12],[1,0,1,12],[2,7,2,8],[2,9,2,10],[2,11,2,12],[2,2,2,6]]}
[{"$f":"'I-Legale rappresentante'!A1","v":"Decreto del Mipaaf n. 0053263 del 02/02/2023 - PNRR - M2C1 - INVESTIMENTO 2.3\nInnovazione e meccanizzazione nel settore agricolo e alimentare: Ammodernamento dei frantoi oleari\n\nREGIONE ABRUZZO: Delibera DPD 018/588 Bando di Aiuto \"Innovazione e meccanizzazione nel settore agricolo e alimentare\", data di fine procedura 15/01/2024"}]
["QUADRO SINOTTICO E INDICATORI DI PROGETTO -CHECK LIST (REGIS)"]
["Indicatore 9\n(Imprese beneficiarie di un sostegno)",1,"Indicatori",null,null,null,null,"Target di spesa\n(Avanzamento finanziario)",null,"TAG\n(2026)",null,"Milestone\n(Checklist)\n(Avanzamento fisico)"]
["Tipologia di intervento","DNSH\n(Relazione tecnica allegata)","Indicatore 6A\n[Imprese beneficiarie di un sostegno per sviluppare o adottare prodotti, servizi e processi applicativi digitali - sviluppo di tecnologie e soluzioni digitali \n","Indicatore 6B\n(Imprese beneficiarie di un sostegno per sviluppare o adottare prodotti, servizi e processi applicativi digitali - adozione di soluzioni digitali per trasformare i loro servizi, prodotti o processi (piccole; medie; grandi)","RRFCI06\n(Imprese supportate nello sviluppo o nell'adozione di prodotti, servizi e processi applicativi digitali:ricevimento del sostegno)","RRFCI09\n(Imprese supportate: ricevimento della sovvenzione)","DNH\n(% Spesa Ambiente e Clima)",2025,2026,"Occupazione giovanile\n(% su totale)","Occupazione femminile\n(% su totale)",2025,2026]

{"sheet":"Quadro riepilogativo","index":15,"n_rows":13,"n_cols":5,"rows_kept":13,"cut":false,"hidden":false,"merged":[[6,0,6,2],[0,0,0,4],[1,0,1,4]]}
[{"$f":"'I-Legale rappresentante'!A1","v":"Decreto del Mipaaf n. 0053263 del 02/02/2023 - PNRR - M2C1 - INVESTIMENTO 2.3\nInnovazione e meccanizzazione nel settore agricolo e alimentare: Ammodernamento dei frantoi oleari\n\nREGIONE ABRUZZO: Delibera DPD 018/588 Bando di Aiuto \"Innovazione e meccanizzazione nel settore agricolo e alimentare\", data di fine procedura 15/01/2024"}]
["QUADRO RIEPILOGATIVO"]
[null,"EX ANTE","EX POST"]
["Ragione sociale o Denominazione sociale"]
["CUAA"]
["Codice ATECO"]
["CRITERI DI SELEZIONE",null,null,"Punteggio dichiarato","Punteggio ammissibile"]
["Localizzazione dell'intervento\n(Investimenti realizzati da aziende localizzate prevalentemente in zone soggette ai vincoli di cui all'art. 32 del Reg. 1305/2013 e in Aree natura 2000)",15,"■ 100%: progetti realizzati in area D\n■ 65%: progetti realizzati in area C\n■ 40%: progetti realizzati in aree B e/o A"]
["Sostenibilità ambientale",30,"■ 100%: realizzazione di almeno 3 interventi di cui alle tipologie A e B di cui alla scheda A-TAB 1\n■ 50%: realizzazione di almeno 2 interventi di cui alle tipologie A e B di cui alla scheda A-TAB 1\n■ 0: assenza del requisito"]
["Capacità di trasformazione",10,"■ 100%: implementazione > = 20%\n■ 50%: implementazione > 10% < 20%\n■ 0: assenza del requisito"]
["Olio extra vergine di oliva / Olio di oliva",20,"■ 100%: produzione olio EVO almeno 80% della produzione totale\n■ 50%: produzione olio EVO almeno 60% della produzione totale\n■ 0: assenza del requisito"]
["Certificazioni di processo/prodotto, energetiche, etiche già in possesso\ndell’impresa richiedente al momento della presentazione del progetto",20,"■ 100%: il richiedente è in possesso di almeno\ndue certificazioni di qualità\n■ 50%: il richiedente è in possesso di una\ncertificazione di qualità\n■ 0: assenza del requisito"]
["Progetti afferenti a domande ammissibili e non finanziate nell’ambito di bandi regionali del PSR Abruzzo 2014-2022 per le tipologie di intervento 4.1.1 e 4.2.1 alla data di presentazione della domanda",5,"■ 100%: soggetto effettivo beneficiario titolare di domande ammissibili e non finanziate nell’ambito di bandi regionali del PSR per le tipologie di intervento 4.1.1 e 4.2.1\n■ 0: assenza del requisito"]

{"sheet":"Elenchi","index":16,"n_rows":6,"n_cols":3,"rows_kept":6,"cut":false,"hidden":true,"merged":[]}
["1. mitigazione del cambiamento climatico","i. una diminuzione del fabbisogno di energia necessaria per condurre i processi di raffinazione per la produzione di olio extravergine di oliva","Tabelle standard dei costi unitari"]
["2. adattamento al cambiamento climatico","ii. una maggiore produzione di olio a parità di materie prime in ingresso connesso ad un aumento di efficienza del processo estrattivo","Prezzario agricolo regionale - aggiornamento 2022"]
["3. uso sostenibile e protezione delle risorse idriche e marine","iii. un minor impatto ambientale dovuto allo smaltimento delle sanse e all'utilizzo di una minore quantità di acqua","Prezzi Informativi delle Opere Edili nella Regione Abruzzo"]
["4. transizione verso l’economia circolare, con riferimento anche a riduzione e riciclo dei rifiuti",null,"Tre preventivi"]
["5. prevenzione e controllo dell’inquinamento",null,"Preventivo unico"]
["6. protezione della biodiversità e della salute degli ecosistemi"]